fUST/lending_fUST_20251011
["ID","MTS","AMOUNT","RATE_DAILY","PERIOD"]
[390888266,1760195443547,-167.52,0.00024657,9]
[390888267,1760195443555,-500.0,0.00024657,9]
[390888268,1760195443564,-500.0,0.00024657,9]
[390888269,1760195443573,-500.0,0.00024657,9]
[390888270,1760195443582,-500.0,0.00024657,9]
[390888271,1760195443591,-500.0,0.00024657,9]
[390888272,1760195443599,-500.0,0.00024657,9]
[390888273,1760195443608,-244.5,0.00024657,9]
[390888274,1760195443619,-151.0,0.00024657,7]
[390888275,1760195443628,-500.0,0.00024657,9]
[390888276,1760195443637,-171.776172,0.00024657,7]
[390888277,1760195443646,-500.0,0.00024657,9]
[390888278,1760195443655,-500.0,0.00024657,9]
[390888279,1760195443664,-500.0,0.00024657,9]
[390888280,1760195443673,-500.0,0.00024657,9]
[390888281,1760195443682,-500.0,0.00024657,9]
[390888282,1760195443691,-500.0,0.00024657,9]
[390888283,1760195443699,-500.0,0.00024657,9]
[390888284,1760195443708,-199.69741932,0.00024657,9]
[390888285,1760195443717,-500.0,0.00024657,9]
[390888286,1760195443726,-500.0,0.00024657,9]
[390888287,1760195443734,-500.0,0.00024657,9]
[390888288,1760195443743,-500.0,0.00024657,9]
[390888289,1760195443752,-500.0,0.00024657,9]
[390888290,1760195443761,-500.0,0.00024657,9]
[390888291,1760195443769,-500.0,0.00024657,9]
[390888292,1760195443778,-500.0,0.00024657,9]
[390888293,1760195443787,-371.28,0.00024657,9]
[390888294,1760195443796,-5422.98,0.00024657,9]
[390888295,1760195443805,-5422.98,0.00024657,9]
[390888296,1760195443814,-5422.98,0.00024657,9]
[390888297,1760195443823,-5422.98,0.00024657,9]
[390888298,1760195443831,-5422.98,0.00024657,9]
[390888299,1760195443840,-5422.98,0.00024657,9]
[390888300,1760195443849,-5422.98,0.00024657,9]
[390888301,1760195443858,-5422.98,0.00024657,9]
[390888302,1760195443867,-500.0,0.00024657,9]
[390888303,1760195443876,-5422.98,0.00024657,9]
[390888304,1760195443885,-20660.79,0.00024657,9]
[390888305,1760195443894,-5422.98,0.00024657,9]
[390888306,1760195443903,-20660.79,0.00024657,9]
[390888307,1760195443912,-5422.98,0.00024657,9]
[390888308,1760195443926,-20660.79,0.00024657,9]
[390888309,1760195443936,-5422.98,0.00024657,9]
[390888310,1760195443945,-20660.79,0.00024657,9]
[390888312,1760195443955,-5422.98,0.00024657,9]
[390888313,1760195443966,-20660.79,0.00024657,9]
[390888314,1760195443976,-5422.98,0.00024657,9]
[390888315,1760195443986,-20660.79,0.00024657,9]
[390888316,1760195443998,-5422.98,0.00024657,9]
[390888317,1760195444008,-20660.79,0.00024657,9]
[390888319,1760195444018,-5422.98,0.00024657,9]
[390888321,1760195444028,-20660.79,0.00024657,9]
[390888322,1760195444037,-500.0,0.00024657,9]
[390888323,1760195444046,-5422.98,0.00024657,9]
[390888325,1760195444055,-20660.79,0.00024657,9]
[390888326,1760195444064,-5422.98,0.00024657,9]
[390888328,1760195444073,-20660.79,0.00024657,9]
[390888329,1760195444083,-5422.98,0.00024657,9]
[390888330,1760195444091,-20660.79,0.00024657,9]
[390888331,1760195444100,-20660.79,0.00024657,9]
[390888332,1760195444109,-5422.98,0.00024657,9]
[390888333,1760195444120,-20660.79,0.00024657,9]
[390888334,1760195444129,-5422.98,0.00024657,9]
[390888335,1760195444139,-20660.79,0.00024657,9]
[390888336,1760195444148,-5422.98,0.00024657,9]
[390888337,1760195444158,-20660.79,0.00024657,9]
[390888338,1760195444167,-5422.98,0.00024657,9]
[390888339,1760195444177,-20660.79,0.00024657,9]
[390888340,1760195444187,-5423.21796082,0.00024657,9]
[390888341,1760195444196,-20660.79,0.00024657,9]
[390888342,1760195444206,-20660.79,0.00024657,9]
[390888343,1760195444215,-20660.79,0.00024657,9]
[390888344,1760195444225,-20660.79,0.00024657,9]
[390888345,1760195444234,-20660.79,0.00024657,9]
[390888346,1760195444243,-151.0,0.00024657,7]
[390888347,1760195444252,-20660.79,0.00024657,9]
[390888348,1760195444262,-151.0,0.00024657,7]
[390888349,1760195444271,-20660.79,0.00024657,9]
[390888350,1760195444281,-20661.00889957,0.00024657,9]
[390888351,1760195444290,-500.0,0.00024657,9]
[390888352,1760195444300,-500.0,0.00024657,9]
[390888353,1760195444309,-500.0,0.00024657,9]
[390888354,1760195444319,-500.0,0.00024657,9]
[390888355,1760195444328,-187.65,0.00024657,9]
[390888356,1760195444337,-500.0,0.00024657,9]
[390888357,1760195444346,-500.0,0.00024657,9]
[390888358,1760195444355,-500.0,0.00024657,9]
[390888359,1760195444367,-500.0,0.00024657,9]
[390888360,1760195444376,-177.63,0.00024657,9]
[390888361,1760195444386,-500.0,0.00024657,9]
[390888362,1760195444395,-500.0,0.00024657,9]
[390888363,1760195444405,-500.0,0.00024657,9]
[390888364,1760195444414,-500.0,0.00024657,9]
[390888365,1760195444424,-500.0,0.00024657,9]
[390888366,1760195444434,-500.0,0.00024657,9]
[390888367,1760195444443,-500.0,0.00024657,9]
[390888368,1760195444452,-399.85,0.00024657,9]
[390888369,1760195444462,-500.0,0.00024657,9]
[390888370,1760195444471,-500.0,0.00024657,9]
[390888371,1760195444480,-500.0,0.00024657,9]
[390888372,1760195444489,-647.83958827,0.00024657,9]
[390888373,1760195444499,-500.0,0.00024657,9]
[390888374,1760195444508,-382.74379651,0.00024657,9]
[390888375,1760195444517,-500.0,0.00024657,9]
[390888376,1760195444527,-500.0,0.00024657,9]
[390888377,1760195444536,-500.0,0.00024657,9]
[390888378,1760195444545,-340.41,0.00024657,9]
[390888379,1760195444554,-500.0,0.00024657,9]
[390888380,1760195444563,-500.0,0.00024657,9]
[390888381,1760195444574,-500.0,0.00024657,9]
[390888382,1760195444583,-500.0,0.00024657,9]
[390888383,1760195444593,-500.0,0.00024657,9]
[390888384,1760195444602,-151.0,0.00024657,7]
[390888385,1760195444611,-500.0,0.00024657,9]
[390888386,1760195444622,-500.0,0.00024657,9]
[390888387,1760195444632,-500.0,0.00024657,9]
[390888388,1760195444641,-151.0,0.00024657,7]
[390888389,1760195444651,-500.0,0.00024657,9]
[390888390,1760195444660,-151.0,0.00024657,7]
[390888391,1760195444671,-151.0,0.00024657,7]
[390888392,1760195444680,-151.0,0.00024657,7]
[390888393,1760195444689,-151.0,0.00024657,7]
[390888394,1760195444699,-500.0,0.00024657,9]
[390888395,1760195444708,-500.0,0.00024673,2]
[390888396,1760195444718,-507.75987965,0.00024673,2]
[390888397,1760195444727,-500.0,0.00024673,2]
[390888398,1760195444737,-500.0,0.00024673,2]
[390888399,1760195444746,-500.0,0.00024673,2]
[390888400,1760195444756,-500.0,0.00024673,2]
[390888401,1760195444766,-500.0,0.00024673,2]
[390888402,1760195444776,-500.0,0.00024673,2]
[390888403,1760195444786,-440.95734321,0.00024673,2]
[390888404,1760195444796,-500.0,0.00024673,2]
[390888405,1760195444805,-500.0,0.00024673,2]
[390888406,1760195444814,-500.0,0.00024673,2]
[390888407,1760195444824,-500.0,0.00024673,2]
[390888408,1760195444833,-269.29037146,0.00024673,2]
[390888409,1760195444843,-500.0,0.00024673,2]
[390888410,1760195444852,-500.0,0.00024673,2]
[390888411,1760195444861,-500.0,0.00024673,2]
[390888412,1760195444872,-500.56618965,0.00024673,2]
[390888413,1760195444881,-500.0,0.00024682,5]
[390888414,1760195444891,-151.0,0.000247,7]
[390888415,1760195444901,-291.83913607,0.00024712,2]
[390888416,1760195444910,-151.0,0.00024712,2]
[390888417,1760195444925,-151.0,0.00024712,2]
[390888418,1760195444934,-151.0,0.00024712,2]
[390888419,1760195444944,-151.0,0.00024712,2]
[390888420,1760195444953,-151.0,0.00024712,2]
[390888421,1760195444964,-500.0,0.00024712,2]
[390888422,1760195444974,-500.0,0.00024712,2]
[390888423,1760195444983,-1767.0,0.00024726,2]
[390888424,1760195444992,-224.95689828,0.00024734,2]
[390888425,1760195445002,-1767.0,0.00024739,2]
[390888426,1760195445012,-1767.0,0.00024763,2]
[390888427,1760195445021,-198.0,0.00024767,2]
[390888428,1760195445030,-151.0,0.00024767,2]
[390888429,1760195445039,-215.41218431,0.00024767,2]
[390888430,1760195445049,-221.61764642,0.00024767,2]
[390888431,1760195445058,-500.0,0.00024767,2]
[390888432,1760195445067,-460.80567964,0.00024767,2]
[390888433,1760195445076,-151.0,0.000248,5]
[390888434,1760195445085,-4269.50610386,0.000248,2]
[390888435,1760195445095,-231513.007642,0.000248,2]
[390888436,1760195445104,-151.0,0.00024821,2]
[390888437,1760195445114,-454.87937848,0.00024821,2]
[390888438,1760195445124,-500.0,0.00024831,2]
[390888439,1760195445133,-259.7,0.00024831,2]
[390888440,1760195445142,-259.7,0.00024831,2]
[390888441,1760195445151,-259.7,0.00024831,2]
[390888442,1760195445161,-259.7,0.00024831,2]
[390888443,1760195445170,-259.7,0.00024831,2]
[390888444,1760195445179,-259.7,0.00024831,2]
[390888445,1760195445189,-259.7,0.00024831,2]
[390888446,1760195445198,-1767.0,0.00024852,2]
[390888447,1760195445207,-1767.0,0.0002486,2]
[390888448,1760195445217,-500.0,0.00024873,2]
[390888449,1760195445227,-500.0,0.00024873,2]
[390888450,1760195445237,-500.0,0.00024873,2]
[390888451,1760195445246,-500.0,0.00024873,2]
[390888452,1760195445255,-500.33211956,0.00024873,2]
[390888453,1760195445265,-500.0,0.00024873,2]
[390888454,1760195445274,-635.17506224,0.00024873,2]
[390888455,1760195445283,-581.13848068,0.00024873,2]
[390888456,1760195445293,-500.0,0.00024873,2]
[390888457,1760195445302,-500.0,0.00024873,2]
[390888458,1760195445312,-500.0,0.00024873,2]
[390888459,1760195445321,-500.0,0.00024873,2]
[390888460,1760195445436,-215.12409197,0.00024873,2]
[390888461,1760195445447,-500.0,0.00024873,2]
[390888462,1760195445457,-500.0,0.00024873,2]
[390888463,1760195445466,-500.0,0.00024873,2]
[390888464,1760195445476,-500.34237924,0.00024873,2]
[390888465,1760195445485,-432.67824504,0.00024873,2]
[390888466,1760195445495,-502.59945279,0.00024873,2]
[390888467,1760195445504,-500.0,0.00024873,2]
[390888468,1760195445513,-500.0,0.00024873,2]
[390888469,1760195445523,-500.0,0.00024873,2]
[390888470,1760195445532,-500.84319843,0.00024873,2]
[390888471,1760195445541,-500.0,0.00024873,2]
[390888472,1760195445551,-282.5801296,0.00024873,2]
[390888473,1760195445560,-500.0,0.00024873,2]
[390888474,1760195445569,-500.0,0.00024873,2]
[390888475,1760195445579,-248.44886256,0.00024873,2]
[390888476,1760195445588,-500.0,0.00024873,2]
[390888477,1760195445597,-500.0,0.00024873,2]
[390888478,1760195445607,-200.43040235,0.00024873,2]
[390888479,1760195445617,-500.0,0.00024873,2]
[390888480,1760195445626,-469.35315239,0.00024873,2]
[390888481,1760195445636,-500.0,0.00024873,2]
[390888482,1760195445646,-299.23514147,0.00024873,2]
[390888483,1760195445655,-245.15009123,0.00024873,2]
[390888484,1760195445664,-500.0,0.00024873,2]
[390888485,1760195445673,-599.90783163,0.00024873,2]
[390888486,1760195445683,-502.01206102,0.00024873,2]
[390888487,1760195445693,-500.0,0.00024873,2]
[390888488,1760195445704,-500.0,0.00024873,2]
[390888489,1760195445715,-245.0,0.00024876,2]
[390888490,1760195445724,-1767.0,0.00024878,2]
[390888491,1760195445735,-1767.0,0.00024884,2]
[390888492,1760195445744,-151.0,0.00024885,2]
[390888493,1760195445755,-18603.8837,0.00024885,2]
[390888494,1760195445765,-250.0,0.00024885,2]
[390888495,1760195445774,-500.0,0.00024885,2]
[390888496,1760195445784,-250.0,0.00024885,2]
[390888497,1760195445794,-250.0,0.00024885,2]
[390888498,1760195445803,-500.0,0.00024885,2]
[390888499,1760195445813,-500.0,0.00024885,2]
[390888500,1760195445823,-250.0,0.00024885,2]
[390888501,1760195445833,-162.86771405,0.00024885,2]
[390888502,1760195445843,-500.0,0.00024885,2]
[390888503,1760195445853,-754.22206734,0.00024885,2]
[390888504,1760195445862,-279.66141207,0.00024885,2]
[390888506,1760195445874,-500.0,0.00024885,2]
[390888508,1760195445883,-500.0,0.00024885,2]
[390888509,1760195445893,-500.0,0.00024885,2]
[390888510,1760195445902,-500.0,0.00024885,2]
[390888511,1760195445911,-500.0,0.00024885,2]
[390888513,1760195445926,-508.20408535,0.00024885,2]
[390888515,1760195445939,-151.0,0.00024885,2]
[390888517,1760195445948,-250.0,0.00024885,2]
[390888519,1760195445958,-151.0,0.00024885,2]
[390888521,1760195445971,-250.0,0.00024885,2]
[390888523,1760195445980,-250.0,0.00024885,2]
[390888525,1760195445991,-151.0,0.00024885,2]
[390888527,1760195446001,-151.0,0.00024885,2]
[390888529,1760195446011,-151.0,0.00024885,2]
[390888531,1760195446021,-194.21282921,0.00024885,2]
[390888533,1760195446030,-151.0,0.00024885,2]
[390888535,1760195446040,-500.0,0.00024885,2]
[390888537,1760195446049,-151.0,0.00024885,2]
[390888539,1760195446059,-500.0,0.00024885,2]
[390888541,1760195446068,-151.0,0.00024885,2]
[390888543,1760195446078,-500.0,0.00024885,2]
[390888545,1760195446089,-151.0,0.00024885,2]
[390888547,1760195446099,-500.0,0.00024885,2]
[390888550,1760195446109,-151.0,0.00024885,2]
[390888552,1760195446121,-500.0,0.00024885,2]
[390888554,1760195446130,-151.0,0.00024885,2]
[390888556,1760195446139,-500.0,0.00024885,2]
[390888558,1760195446148,-151.0,0.00024885,2]
[390888559,1760195446156,-500.0,0.00024885,2]
[390888560,1760195446166,-151.0,0.00024885,2]
[390888561,1760195446175,-500.0,0.00024885,2]
[390888562,1760195446184,-151.0,0.00024885,2]
[390888564,1760195446193,-500.0,0.00024885,2]
[390888566,1760195446203,-151.0,0.00024885,2]
[390888568,1760195446213,-500.0,0.00024885,2]
[390888570,1760195446222,-255.4525165,0.00024885,2]
[390888572,1760195446231,-500.0,0.00024885,2]
[390888574,1760195446240,-500.0,0.00024885,2]
[390888575,1760195446248,-500.0,0.00024885,2]
[390888577,1760195446257,-500.0,0.00024885,2]
[390888579,1760195446266,-500.0,0.00024885,2]
[390888581,1760195446276,-500.0,0.00024885,2]
[390888583,1760195446285,-500.0,0.00024885,2]
[390888585,1760195446294,-151.0,0.00024885,2]
[390888586,1760195446304,-500.0,0.00024885,2]
[390888587,1760195446313,-151.0,0.00024885,2]
[390888588,1760195446322,-151.0,0.00024885,2]
[390888589,1760195446331,-151.0,0.00024885,2]
[390888590,1760195446340,-151.0,0.00024899,7]
[390888591,1760195446350,-153.0189,0.00024899,7]
[390888592,1760195446359,-153.0189,0.00024899,7]
[390888593,1760195446369,-153.0189,0.00024899,7]
[390888595,1760195446378,-153.0189,0.00024899,7]
[390888596,1760195446387,-153.0189,0.00024899,7]
[390888597,1760195446396,-153.0189,0.00024899,7]
[390888598,1760195446405,-153.0189,0.00024899,7]
[390888599,1760195446415,-153.0189,0.00024899,7]
[390888600,1760195446425,-151.0,0.00024899,7]
[390888601,1760195446434,-3634.38,0.00024899,9]
[390888602,1760195446443,-3634.38,0.00024899,9]
[390888603,1760195446452,-3634.38,0.00024899,9]
[390888604,1760195446461,-3634.38,0.00024899,9]
[390888605,1760195446470,-3634.38,0.00024899,9]
[390888606,1760195446480,-3634.38,0.00024899,9]
[390888607,1760195446489,-3634.38,0.00024899,9]
[390888608,1760195446498,-3634.38,0.00024899,9]
[390888609,1760195446507,-3634.38,0.00024899,9]
[390888610,1760195446516,-3634.56191686,0.00024899,9]
[390888611,1760195446526,-3719.22,0.00024899,9]
[390888612,1760195446536,-3719.22,0.00024899,9]
[390888613,1760195446545,-3719.22,0.00024899,9]
[390888614,1760195446554,-3719.22,0.00024899,9]
[390888615,1760195446564,-3719.22,0.00024899,9]
[390888616,1760195446574,-3719.22,0.00024899,9]
[390888617,1760195446583,-3719.22,0.00024899,9]
[390888618,1760195446594,-3719.22,0.00024899,9]
[390888619,1760195446603,-3719.22,0.00024899,9]
[390888620,1760195446612,-3719.22,0.00024899,9]
[390888621,1760195446623,-3719.22,0.00024899,9]
[390888622,1760195446632,-3719.22,0.00024899,9]
[390888623,1760195446641,-3719.37490348,0.00024899,9]
[390888624,1760195446654,-151.0,0.00024899,7]
[390888625,1760195446663,-151.0,0.00024899,7]
[390888626,1760195446672,-153.0189,0.000249,7]
[390888627,1760195446682,-153.0189,0.000249,7]
[390888628,1760195446691,-153.0189,0.000249,7]
[390888629,1760195446702,-153.0189,0.000249,7]
[390888630,1760195446711,-648236.586228,0.000249,2]
[390888631,1760195446721,-2609.37557469,0.000249,7]
[390888632,1760195446731,-500.0,0.00024931,2]
[390888633,1760195446740,-500.0,0.00024956,5]
[390888634,1760195446749,-4190.57,0.0002499,2]
[390888635,1760195446758,-1767.0,0.00025135,2]
[390888636,1760195446768,-1767.0,0.00025143,2]
[390888637,1760195446777,-1767.0,0.00025182,2]
[390888638,1760195446787,-500.0,0.00025205,2]
[390888639,1760195446796,-1767.0,0.00025217,2]
[390888640,1760195446805,-638.06714122,0.00025221,2]
[390888641,1760195446815,-1000.0,0.00025221,2]
[390888642,1760195446824,-500.0,0.00025221,2]
[390888643,1760195446833,-1000.0,0.00025221,2]
[390888644,1760195446843,-1000.0,0.00025221,2]
[390888645,1760195446852,-1000.0,0.00025221,2]
[390888646,1760195446862,-502.98383582,0.00025221,2]
[390888647,1760195446873,-380.52601766,0.00025221,2]
[390888648,1760195446883,-1000.0,0.00025221,2]
[390888649,1760195446893,-1000.0,0.00025221,2]
[390888650,1760195446903,-1105.72077124,0.00025221,2]
[390888651,1760195446913,-1000.0,0.00025221,2]
[390888652,1760195446927,-1004.1325774,0.00025221,2]
[390888653,1760195446938,-500.0,0.0002523,5]
[390888654,1760195446948,-1767.0,0.00025306,2]
[390888655,1760195446958,-254.2991024,0.00025334,2]
[390888656,1760195446969,-1767.0,0.00025356,2]
[390888657,1760195446978,-300.0,0.00025396,20]
[390888658,1760195446987,-300.0,0.00025396,20]
[390888659,1760195446996,-300.0,0.00025396,20]
[390888660,1760195447005,-300.0,0.00025396,20]
[390888661,1760195447018,-300.0,0.00025396,20]
[390888662,1760195447029,-300.0,0.00025396,20]
[390888663,1760195447039,-300.0,0.00025396,20]
[390888664,1760195447049,-300.0,0.00025396,20]
[390888665,1760195447060,-300.0,0.00025396,20]
[390888666,1760195447070,-300.0,0.00025396,20]
[390888667,1760195447079,-300.0,0.00025396,20]
[390888668,1760195447089,-300.0,0.00025396,20]
[390888669,1760195447098,-300.0,0.00025396,20]
[390888670,1760195447108,-300.0,0.00025396,20]
[390888671,1760195447120,-300.0,0.00025396,20]
[390888672,1760195447130,-501.37593705,0.00025421,2]
[390888673,1760195447139,-500.0,0.00025421,2]
[390888674,1760195447149,-156.86003574,0.00025421,2]
[390888675,1760195447159,-1000.0,0.00025421,2]
[390888676,1760195447168,-500.28208769,0.00025421,2]
[390888677,1760195447178,-1000.0,0.00025421,2]
[390888678,1760195447188,-1000.0,0.00025421,2]
[390888679,1760195447197,-1000.0,0.00025421,2]
[390888680,1760195447207,-1000.0,0.00025421,2]
[390888681,1760195447216,-1000.0,0.00025421,2]
[390888682,1760195447226,-622.50427265,0.00025421,2]
[390888683,1760195447236,-1000.0,0.00025421,2]
[390888684,1760195447245,-1000.0,0.00025421,2]
[390888685,1760195447255,-688.03136191,0.00025421,2]
[390888686,1760195447264,-1000.0,0.00025421,2]
[390888687,1760195447275,-1000.0,0.00025421,2]
[390888688,1760195447285,-320.63419957,0.00025421,2]
[390888689,1760195447294,-500.0,0.00025421,2]
[390888690,1760195447304,-1000.0,0.00025421,2]
[390888691,1760195447314,-500.0,0.00025421,2]
[390888692,1760195447324,-1000.0,0.00025421,2]
[390888693,1760195447334,-1000.0,0.00025421,2]
[390888694,1760195447343,-1000.0,0.00025421,2]
[390888695,1760195447353,-1767.0,0.0002543,2]
[390888696,1760195447363,-19292.2273969,0.00025433,2]
[390888697,1760195447375,-1767.0,0.00025472,2]
[390888698,1760195447384,-500.0,0.00025479,2]
[390888699,1760195447394,-1233.2,0.00025494,3]
[390888700,1760195447403,-616.6,0.00025494,3]
[390888701,1760195447413,-308.3,0.00025494,3]
[390888702,1760195447423,-554.2,0.00025494,3]
[390888703,1760195447432,-380.84,0.00025494,3]
[390888704,1760195447442,-500.0,0.00025504,5]
[390888705,1760195447451,-1767.0,0.00025619,2]
[390888706,1760195447462,-1767.0,0.00025686,2]
[390888707,1760195447472,-1767.0,0.00025723,2]
[390888708,1760195447481,-1767.0,0.00025749,2]
[390888709,1760195447490,-500.0,0.00025753,2]
[390888710,1760195447500,-1500.0,0.00025768,2]
[390888711,1760195447510,-1000.0,0.00025768,2]
[390888712,1760195447520,-500.0,0.00025768,2]
[390888713,1760195447530,-500.0,0.00025778,5]
[390888714,1760195447540,-643.44916529,0.000258,2]
[390888715,1760195447550,-154.809388,0.00025836,9]
[390888716,1760195447560,-666.66666667,0.00025849,2]
[390888717,1760195447570,-666.66666667,0.00025849,2]
[390888718,1760195447580,-666.66666667,0.00025849,2]
[390888719,1760195447589,-1572.3116027,0.0002587,2]
[390888720,1760195447598,-1767.0,0.00025874,2]
[390888721,1760195447608,-172.65316788,0.000259,2]
[390888722,1760195447619,-432.35946829,0.000259,2]
[390888723,1760195447629,-1058.32870369,0.000259,2]
[390888724,1760195447638,-312.16666667,0.00025902,2]
[390888725,1760195447647,-600.0,0.00025903,20]
[390888726,1760195447657,-1767.0,0.00025916,2]
[390888727,1760195447666,-2609.37557469,0.00025918,2]
[390888728,1760195447676,-283.64130653,0.00025934,2]
[390888729,1760195447685,-1683.64805288,0.00025935,2]
[390888730,1760195447695,-1010.99151939,0.00025968,2]
[390888731,1760195447704,-1500.0,0.00025968,2]
[390888732,1760195447713,-500.0,0.00025968,2]
[390888733,1760195447722,-1500.0,0.00025968,2]
[390888734,1760195447731,-1000.9986309,0.00025968,2]
[390888735,1760195447740,-503.64926793,0.00025968,2]
[390888736,1760195447749,-1500.0,0.00025968,2]
[390888737,1760195447758,-1502.45008947,0.00025968,2]
[390888738,1760195447767,-1500.0,0.00025968,2]
[390888739,1760195447777,-20006.03981059,0.00025981,2]
[390888740,1760195447787,-666.66666667,0.00026004,4]
[390888741,1760195447797,-500.0,0.00026027,2]
[390888742,1760195447807,-1442.99,0.00026027,2]
[390888743,1760195447816,-500.0,0.00026052,5]
[390888744,1760195447826,-564.38,0.00026057,2]
[390888745,1760195447836,-152.19818,0.00026148,9]
[390888746,1760195447845,-154.809388,0.00026148,9]
[390888747,1760195447855,-154.809388,0.00026148,9]
[390888748,1760195447866,-152.198179,0.00026148,9]
[390888749,1760195447876,-154.809388,0.00026148,9]
[390888750,1760195447887,-666.66666667,0.0002616,6]
[390888751,1760195447896,-666.66666667,0.0002616,6]
[390888752,1760195447907,-320.0,0.00026167,2]
[390888753,1760195447916,-300.0,0.00026167,2]
[390888754,1760195447927,-300.0,0.00026167,2]
[390888755,1760195447938,-420.0,0.00026167,2]
[390888756,1760195447947,-172.65316788,0.000262,2]
[390888757,1760195447956,-432.35946829,0.000262,2]
[390888758,1760195447966,-1058.32870369,0.000262,2]
[390888759,1760195447975,-350.8301397,0.00026258,2]
[390888760,1760195447984,-501.34363723,0.00026267,2]
[390888761,1760195447993,-291.45974772,0.00026267,2]
[390888762,1760195448004,-1635.1612965,0.00026275,2]
[390888763,1760195448013,-1680.0,0.00026287,2]
[390888764,1760195448022,-500.0,0.00026301,2]
[390888765,1760195448031,-666.66666667,0.00026315,8]
[390888766,1760195448040,-666.66666667,0.00026315,8]
[390888767,1760195448050,-666.66666667,0.00026315,8]
[390888768,1760195448059,-666.66666667,0.00026315,8]
[390888769,1760195448068,-500.0,0.00026326,5]
[390888770,1760195448077,-172.65316788,0.000264,2]
[390888771,1760195448087,-432.35946829,0.000264,2]
[390888772,1760195448096,-1058.32870369,0.000264,2]
[390888773,1760195448105,-210.5397628,0.0002641,2]
[390888774,1760195448116,-194.0,0.0002642,15]
[390888775,1760195448126,-666.66666667,0.0002647,10]
[390888776,1760195448135,-666.66666667,0.0002647,10]
[390888777,1760195448145,-666.66666667,0.0002647,10]
[390888778,1760195448153,-666.66666667,0.0002647,10]
[390888779,1760195448163,-500.0,0.00026516,2]
[390888780,1760195448171,-2000.0,0.00026516,2]
[390888781,1760195448181,-2000.0,0.00026516,2]
[390888782,1760195448190,-2000.0,0.00026516,2]
[390888783,1760195448199,-20746.26328358,0.00026529,2]
[390888784,1760195448208,-312.98351065,0.00026534,2]
[390888785,1760195448217,-329.0,0.00026571,3]
[390888786,1760195448227,-166.0,0.00026571,3]
[390888787,1760195448236,-329.0,0.00026571,3]
[390888788,1760195448245,-166.0,0.00026571,3]
[390888789,1760195448255,-329.0,0.00026571,3]
[390888790,1760195448361,-329.0,0.00026571,3]
[390888791,1760195448373,-166.0,0.00026571,3]
[390888792,1760195448382,-172.0,0.00026571,3]
[390888793,1760195448392,-329.0,0.00026571,3]
[390888794,1760195448401,-329.0,0.00026571,3]
[390888795,1760195448410,-329.0,0.00026571,3]
[390888796,1760195448419,-329.0,0.00026571,3]
[390888797,1760195448429,-329.0,0.00026571,3]
[390888798,1760195448438,-329.0,0.00026571,3]
[390888799,1760195448448,-329.0,0.00026571,3]
[390888800,1760195448457,-329.0,0.00026571,3]
[390888801,1760195448466,-329.0,0.00026571,3]
[390888802,1760195448475,-329.0,0.00026571,3]
[390888803,1760195448484,-329.0,0.00026571,3]
[390888804,1760195448494,-329.0,0.00026571,3]
[390888805,1760195448503,-329.0,0.00026571,3]
[390888806,1760195448513,-329.0,0.00026571,3]
[390888807,1760195448522,-329.0,0.00026571,3]
[390888808,1760195448531,-329.0,0.00026571,3]